[Event "*** Titled Tuesday 3|2 Blitz (Early)"]
[Site "Chess.com"]
[Date "2016.12.06"]
[Round "9"]
[White "calemcc"]
[Black "poummba"]
[Result "1-0"]
[WhiteElo "2112"]
[BlackElo "2342"]
[TimeControl "180+2"]
[EndTime "12:58:32 PST"]
[Termination "calemcc won by resignation"]

1. d4 {[%clk 0:03:02]} 1... g6 {[%clk 0:03:00.6]} 2. c4 {[%clk 0:03:03.9]} 2...
Bg7 {[%clk 0:03:02]} 3. e4 {[%clk 0:03:05.4]} 3... d6 {[%clk 0:03:03.4]} 4. Nc3
{[%clk 0:03:05.9]} 4... e5 {[%clk 0:03:04.6]} 5. Nge2 {[%clk 0:03:04]} 5... exd4
{[%clk 0:03:05.4]} 6. Nxd4 {[%clk 0:03:05.9]} 6... Ne7 {[%clk 0:03:06.4]} 7. Be3
{[%clk 0:03:07.4]} 7... O-O {[%clk 0:03:06.5]} 8. f3 {[%clk 0:03:08.7]} 8...
Nbc6 {[%clk 0:03:05.7]} 9. Qd2 {[%clk 0:03:09.9]} 9... f5 {[%clk 0:03:07]} 10.
h4 {[%clk 0:03:06]} 10... fxe4 {[%clk 0:03:04.7]} 11. fxe4 {[%clk 0:03:05.2]}
11... Nxd4 {[%clk 0:02:58.1]} 12. Bxd4 {[%clk 0:03:04.5]} 12... Nc6 {[%clk
0:02:58.8]} 13. Bxg7 {[%clk 0:03:04.7]} 13... Kxg7 {[%clk 0:03:00.7]} 14. O-O-O
{[%clk 0:03:03.3]} 14... Bg4 {[%clk 0:02:57.4]} 15. Be2 {[%clk 0:03:03.6]} 15...
Bxe2 {[%clk 0:02:58.6]} 16. Nxe2 {[%clk 0:03:00.8]} 16... Ne5 {[%clk 0:02:53.5]}
17. Qd4 {[%clk 0:02:54.6]} 17... h5 {[%clk 0:02:47.8]} 18. c5 {[%clk 0:02:52.7]}
18... Qf6 {[%clk 0:02:38.3]} 19. Nc3 {[%clk 0:02:32.8]} 19... dxc5 {[%clk
0:02:32.7]} 20. Qxc5 {[%clk 0:02:28.9]} 20... c6 {[%clk 0:02:34.3]} 21. Kb1
{[%clk 0:02:27.3]} 21... Ng4 {[%clk 0:02:30.9]} 22. Rd7+ {[%clk 0:02:22.5]}
22... Rf7 {[%clk 0:02:32.2]} 23. Rhd1 {[%clk 0:02:22.2]} 23... Rf8 {[%clk
0:02:32.4]} 24. Qxa7 {[%clk 0:02:21.4]} 24... Qxh4 {[%clk 0:02:28.5]} 25. Qxb7
{[%clk 0:02:21.3]} 25... Qf2 {[%clk 0:02:22]} 26. Qxc6 {[%clk 0:02:14.8]} 26...
Ne3 {[%clk 0:02:21.9]} 27. R1d2 {[%clk 0:02:03.9]} 27... Qe1+ {[%clk 0:02:23.1]}
28. Nd1 {[%clk 0:02:04.3]} 28... Nxd1 {[%clk 0:02:07.1]} 29. Rxd1 {[%clk
0:02:04.3]} 29... Qe2 {[%clk 0:02:09]} 30. a4 {[%clk 0:01:56.2]} 30... Qxg2
{[%clk 0:02:09.2]} 31. a5 {[%clk 0:01:57.2]} 31... h4 {[%clk 0:02:10.7]} 32. a6
{[%clk 0:01:58.4]} 32... h3 {[%clk 0:02:12.3]} 33. a7 {[%clk 0:01:59.9]} 33...
Rxd7 {[%clk 0:01:48.2]} 34. Rxd7+ {[%clk 0:01:56.7]} 34... Kh6 {[%clk
0:01:48.8]} 35. Qc1+ {[%clk 0:01:58.1]} 35... g5 {[%clk 0:01:41.4]} 36. Rd6+
{[%clk 0:01:52.7]} 36... Kh5 {[%clk 0:01:42.7]} 37. Qd1+ {[%clk 0:01:53.6]}
37... g4 {[%clk 0:01:18.9]} 38. Qd5+ {[%clk 0:01:52.1]} 38... Kh4 {[%clk
0:01:20.4]} 39. Rh6+ {[%clk 0:01:53.3]} 39... Kg3 {[%clk 0:01:21.9]} 40. Qd6+
{[%clk 0:01:54.6]} 40... Kf2 {[%clk 0:01:21.6]} 41. Qxf8+ {[%clk 0:01:55.1]}
41... Ke2 {[%clk 0:01:23.2]} 42. a8=Q {[%clk 0:01:53.2]} 42... h2 {[%clk
0:01:24.1]} 43. Qa6+ {[%clk 0:01:53.7]} 43... Ke1 {[%clk 0:01:25.7]} 44. Qb4+
{[%clk 0:01:54.1]} 44... Kd1 {[%clk 0:01:25.2]} 45. Rd6+ {[%clk 0:01:54.1]} 1-0

[Event "*** Titled Tuesday 3|2 Blitz (Early)"]
[Site "Chess.com"]
[Date "2016.12.06"]
[Round "9"]
[White "NewBornNow"]
[Black "pedromartinez91"]
[Result "1-0"]
[WhiteElo "2585"]
[BlackElo "2346"]
[TimeControl "180+2"]
[EndTime "12:58:43 PST"]
[Termination "NewBornNow won by checkmate"]

1. d4 {[%clk 0:03:02]} 1... d5 {[%clk 0:02:59.3]} 2. c4 {[%clk 0:03:01.9]} 2...
Nc6 {[%clk 0:03:00.2]} 3. Nf3 {[%clk 0:03:01.1]} 3... Bg4 {[%clk 0:03:00.4]} 4.
e3 {[%clk 0:02:59.6]} 4... e5 {[%clk 0:03:00.2]} 5. cxd5 {[%clk 0:02:59.4]} 5...
Qxd5 {[%clk 0:02:59.6]} 6. Nc3 {[%clk 0:03:00.2]} 6... Bb4 {[%clk 0:03:00.5]} 7.
Be2 {[%clk 0:03:01.2]} 7... Nf6 {[%clk 0:02:37.3]} 8. O-O {[%clk 0:02:59.2]}
8... Bxc3 {[%clk 0:02:38]} 9. bxc3 {[%clk 0:03:00.2]} 9... e4 {[%clk 0:02:37.4]}
10. Nd2 {[%clk 0:03:01.1]} 10... Bxe2 {[%clk 0:02:34.5]} 11. Qxe2 {[%clk
0:03:02]} 11... O-O {[%clk 0:02:35.6]} 12. c4 {[%clk 0:03:00.3]} 12... Qg5
{[%clk 0:02:11.8]} 13. f3 {[%clk 0:02:57.3]} 13... Rfe8 {[%clk 0:02:03.7]} 14.
d5 {[%clk 0:02:50.8]} 14... Nb4 {[%clk 0:01:15.6]} 15. Bb2 {[%clk 0:02:35.1]}
15... exf3 {[%clk 0:01:12.7]} 16. Rxf3 {[%clk 0:02:35]} 16... Nc2 {[%clk
0:01:13.3]} 17. Bxf6 {[%clk 0:02:29.9]} 17... Qh6 {[%clk 0:00:43.6]} 18. Bc3
{[%clk 0:02:18.7]} 18... Nxa1 {[%clk 0:00:41.5]} 19. Bxa1 {[%clk 0:02:19.2]}
19... Re7 {[%clk 0:00:42.4]} 20. Bd4 {[%clk 0:02:15.2]} 20... Rae8 {[%clk
0:00:42.8]} 21. h3 {[%clk 0:02:13]} 21... f6 {[%clk 0:00:43.1]} 22. Qd3 {[%clk
0:02:11.2]} 22... Qh4 {[%clk 0:00:34.9]} 23. Kh2 {[%clk 0:02:01.2]} 23... Qe1
{[%clk 0:00:33.7]} 24. Rg3 {[%clk 0:01:58.2]} 24... Rf7 {[%clk 0:00:25.6]} 25.
Ne4 {[%clk 0:01:56.2]} 25... Kf8 {[%clk 0:00:22.9]} 26. Qa3+ {[%clk 0:01:52.8]}
26... Rfe7 {[%clk 0:00:20.5]} 27. Bc5 {[%clk 0:01:50]} 27... Kf7 {[%clk
0:00:21.5]} 28. Bxe7 {[%clk 0:01:50.5]} 28... Rxe7 {[%clk 0:00:23.2]} 29. Rxg7+
{[%clk 0:01:51.4]} 29... Kxg7 {[%clk 0:00:23.4]} 30. Qxe7+ {[%clk 0:01:52.1]}
30... Kh8 {[%clk 0:00:18.7]} 31. Qf8# {[%clk 0:01:52.6]} 1-0

[Event "*** Titled Tuesday 3|2 Blitz (Early)"]
[Site "Chess.com"]
[Date "2016.12.06"]
[Round "9"]
[White "Evgeny_Levin"]
[Black "Genghis_K"]
[Result "1-0"]
[WhiteElo "2748"]
[BlackElo "2680"]
[TimeControl "180+2"]
[EndTime "12:58:57 PST"]
[Termination "Evgeny_Levin won by checkmate"]

1. d4 {[%clk 0:03:02]} 1... Nf6 {[%clk 0:03:00.5]} 2. c4 {[%clk 0:03:02.8]} 2...
c5 {[%clk 0:03:02]} 3. d5 {[%clk 0:03:02.8]} 3... e6 {[%clk 0:03:03.4]} 4. Nc3
{[%clk 0:03:02.2]} 4... exd5 {[%clk 0:03:05]} 5. cxd5 {[%clk 0:03:03.2]} 5... d6
{[%clk 0:03:06.6]} 6. e4 {[%clk 0:03:03.5]} 6... g6 {[%clk 0:03:08.2]} 7. f4
{[%clk 0:03:01.3]} 7... Bg7 {[%clk 0:03:09.6]} 8. Bb5+ {[%clk 0:03:01.4]} 8...
Nfd7 {[%clk 0:03:08.7]} 9. Nf3 {[%clk 0:03:01.9]} 9... O-O {[%clk 0:02:59.4]}
10. O-O {[%clk 0:03:02.3]} 10... a6 {[%clk 0:03:00.1]} 11. Bd3 {[%clk
0:03:03.1]} 11... b5 {[%clk 0:03:00.5]} 12. a3 {[%clk 0:03:02.4]} 12... Nb6
{[%clk 0:03:00]} 13. f5 {[%clk 0:02:56.1]} 13... N8d7 {[%clk 0:03:01.2]} 14. Bg5
{[%clk 0:02:52]} 14... Nf6 {[%clk 0:02:52.3]} 15. Qe1 {[%clk 0:02:46.9]} 15...
gxf5 {[%clk 0:02:50.2]} 16. Qh4 {[%clk 0:02:42.9]} 16... Re8 {[%clk 0:02:51.5]}
17. Rae1 {[%clk 0:02:30.4]} 17... b4 {[%clk 0:02:48.8]} 18. axb4 {[%clk
0:02:27.5]} 18... cxb4 {[%clk 0:02:50.7]} 19. Nd1 {[%clk 0:02:23.2]} 19... a5
{[%clk 0:02:49.4]} 20. Ne3 {[%clk 0:01:48]} 20... fxe4 {[%clk 0:02:43.5]} 21.
Bb5 {[%clk 0:01:35.8]} 21... Bd7 {[%clk 0:01:48.6]} 22. Bxd7 {[%clk 0:01:35]}
22... Nbxd7 {[%clk 0:01:49.9]} 23. Nd4 {[%clk 0:01:34.6]} 23... Re5 {[%clk
0:01:44.9]} 24. Nc6 {[%clk 0:01:34.2]} 24... Qb6 {[%clk 0:01:44.1]} 25. Bxf6
{[%clk 0:01:32.1]} 25... Nxf6 {[%clk 0:01:41.3]} 26. Rxf6 {[%clk 0:01:32.8]}
26... Ree8 {[%clk 0:01:34.6]} 27. Rf2 {[%clk 0:01:25]} 27... a4 {[%clk
0:01:15.2]} 28. Ne7+ {[%clk 0:01:15.7]} 28... Kh8 {[%clk 0:01:08.4]} 29. Rxf7
{[%clk 0:01:11.6]} 29... a3 {[%clk 0:01:03.7]} 30. Rxg7 {[%clk 0:01:09.9]} 30...
Kxg7 {[%clk 0:00:59.6]} 31. Nf5+ {[%clk 0:01:06.4]} 31... Kg6 {[%clk 0:00:54.4]}
32. Qh6+ {[%clk 0:01:05.8]} 32... Kf7 {[%clk 0:00:55.9]} 33. Qg7# {[%clk
0:01:07.4]} 1-0

[Event "*** Titled Tuesday 3|2 Blitz (Early)"]
[Site "Chess.com"]
[Date "2016.12.06"]
[Round "9"]
[White "Schemato"]
[Black "stuffings101"]
[Result "0-1"]
[WhiteElo "2293"]
[BlackElo "2193"]
[TimeControl "180+2"]
[EndTime "12:58:59 PST"]
[Termination "stuffings101 won by resignation"]

1. c4 {[%clk 0:03:02]} 1... Nf6 {[%clk 0:03:00]} 2. Nc3 {[%clk 0:03:02.5]} 2...
g6 {[%clk 0:03:00.8]} 3. g3 {[%clk 0:03:03.8]} 3... Bg7 {[%clk 0:03:00.9]} 4.
Bg2 {[%clk 0:03:05]} 4... O-O {[%clk 0:03:01.6]} 5. e4 {[%clk 0:03:06.3]} 5...
d6 {[%clk 0:03:02.5]} 6. Nge2 {[%clk 0:03:07.8]} 6... c6 {[%clk 0:03:02.6]} 7.
O-O {[%clk 0:03:08.6]} 7... a6 {[%clk 0:03:03.3]} 8. d3 {[%clk 0:03:10]} 8... b5
{[%clk 0:03:03.9]} 9. h3 {[%clk 0:03:06.8]} 9... Nfd7 {[%clk 0:03:03.8]} 10. Rb1
{[%clk 0:03:00.5]} 10... Nb6 {[%clk 0:03:04.2]} 11. b3 {[%clk 0:03:00.3]} 11...
b4 {[%clk 0:03:04.9]} 12. Na4 {[%clk 0:03:00.1]} 12... Nxa4 {[%clk 0:03:05.7]}
13. bxa4 {[%clk 0:03:02]} 13... a5 {[%clk 0:03:04.4]} 14. d4 {[%clk 0:02:58]}
14... Ra7 {[%clk 0:02:57.2]} 15. a3 {[%clk 0:02:56.4]} 15... c5 {[%clk 0:02:57]}
16. Qd3 {[%clk 0:02:48.8]} 16... Bd7 {[%clk 0:02:52.2]} 17. dxc5 {[%clk
0:02:40.3]} 17... dxc5 {[%clk 0:02:51.3]} 18. Rd1 {[%clk 0:02:39.8]} 18... Qc8
{[%clk 0:02:37]} 19. axb4 {[%clk 0:02:31.6]} 19... axb4 {[%clk 0:02:36.7]} 20.
Be3 {[%clk 0:02:30.2]} 20... Bxa4 {[%clk 0:02:34.5]} 21. Nf4 {[%clk 0:02:22.1]}
21... Bxd1 {[%clk 0:02:31.5]} 22. Rxd1 {[%clk 0:02:24]} 22... Rd7 {[%clk
0:02:21.8]} 23. Qb1 {[%clk 0:02:21.7]} 23... Rxd1+ {[%clk 0:02:21.3]} 24. Qxd1
{[%clk 0:02:23.6]} 24... Rd8 {[%clk 0:02:13.5]} 25. Qa4 {[%clk 0:02:21.8]} 25...
e6 {[%clk 0:02:09.6]} 26. Qb5 {[%clk 0:02:17.5]} 26... Bd4 {[%clk 0:02:09.6]}
27. Bc1 {[%clk 0:02:08.9]} 27... Qd7 {[%clk 0:02:04.5]} 28. e5 {[%clk
0:01:58.7]} 28... Qxb5 {[%clk 0:01:51.1]} 29. cxb5 {[%clk 0:01:59.5]} 29... Bxe5
{[%clk 0:01:51.7]} 30. Bf1 {[%clk 0:01:52.5]} 30... Rd1 {[%clk 0:01:50]} 31. Be3
{[%clk 0:01:51.1]} 31... Bd4 {[%clk 0:01:34]} 32. Bxd4 {[%clk 0:01:45.8]} 32...
cxd4 {[%clk 0:01:25.2]} 33. Kg2 {[%clk 0:01:45.8]} 33... b3 {[%clk 0:01:26]} 34.
Nd3 {[%clk 0:01:46.1]} 34... f6 {[%clk 0:01:20.9]} 35. b6 {[%clk 0:01:26.8]}
35... e5 {[%clk 0:01:20.8]} 36. Nc5 {[%clk 0:01:18.9]} 36... Rxf1 {[%clk
0:01:10]} 0-1

[Event "*** Titled Tuesday 3|2 Blitz (Early)"]
[Site "Chess.com"]
[Date "2016.12.06"]
[Round "9"]
[White "micfel"]
[Black "Divertissement"]
[Result "1/2-1/2"]
[WhiteElo "2294"]
[BlackElo "2423"]
[TimeControl "180+2"]
[EndTime "12:59:01 PST"]
[Termination "Game drawn by repetition"]

1. e4 {[%clk 0:03:00.1]} 1... c5 {[%clk 0:03:00.3]} 2. Nf3 {[%clk 0:03:00.8]}
2... d6 {[%clk 0:03:01.3]} 3. d4 {[%clk 0:03:01.6]} 3... cxd4 {[%clk 0:03:03.2]}
4. Nxd4 {[%clk 0:03:02.6]} 4... Nf6 {[%clk 0:03:02.9]} 5. Nc3 {[%clk 0:03:03.2]}
5... a6 {[%clk 0:03:03.2]} 6. Be2 {[%clk 0:03:03.6]} 6... e5 {[%clk 0:03:03.8]}
7. Nf3 {[%clk 0:03:03]} 7... Be7 {[%clk 0:03:04.7]} 8. O-O {[%clk 0:03:03.1]}
8... O-O {[%clk 0:03:05]} 9. Bc4 {[%clk 0:03:01.5]} 9... h6 {[%clk 0:03:04.8]}
10. Re1 {[%clk 0:03:01]} 10... Bg4 {[%clk 0:03:03.3]} 11. h3 {[%clk 0:03:01.7]}
11... Bh5 {[%clk 0:03:03.9]} 12. Be2 {[%clk 0:03:01.2]} 12... Nc6 {[%clk
0:03:03.4]} 13. Be3 {[%clk 0:03:00.7]} 13... Rc8 {[%clk 0:03:00.3]} 14. Nd2
{[%clk 0:02:58]} 14... Bg6 {[%clk 0:02:59.9]} 15. Bf3 {[%clk 0:02:52]} 15... b5
{[%clk 0:02:54.6]} 16. a3 {[%clk 0:02:52.6]} 16... Na5 {[%clk 0:02:46.3]} 17.
Qe2 {[%clk 0:02:47.6]} 17... Nc4 {[%clk 0:02:45.3]} 18. Nxc4 {[%clk 0:02:48.1]}
18... Rxc4 {[%clk 0:02:45]} 19. Rad1 {[%clk 0:02:45.9]} 19... Nxe4 {[%clk
0:02:41.9]} 20. Nd5 {[%clk 0:02:35.5]} 20... Nf6 {[%clk 0:02:34.7]} 21. c3
{[%clk 0:02:33]} 21... Nxd5 {[%clk 0:02:33.7]} 22. Bxd5 {[%clk 0:02:33.4]} 22...
Rc8 {[%clk 0:02:33.3]} 23. Qg4 {[%clk 0:02:33.8]} 23... Kh7 {[%clk 0:02:31]} 24.
f4 {[%clk 0:02:22.5]} 24... f5 {[%clk 0:02:31.4]} 25. Qf3 {[%clk 0:02:20.8]}
25... e4 {[%clk 0:02:32.2]} 26. Qf2 {[%clk 0:02:21.4]} 26... Bf6 {[%clk
0:02:31]} 27. Kh2 {[%clk 0:02:18.5]} 27... Bh5 {[%clk 0:02:31.4]} 28. Rd2 {[%clk
0:02:17.6]} 28... a5 {[%clk 0:02:31.7]} 29. Rg1 {[%clk 0:02:17.6]} 29... b4
{[%clk 0:02:31.3]} 30. axb4 {[%clk 0:02:14.1]} 30... axb4 {[%clk 0:02:32.2]} 31.
cxb4 {[%clk 0:02:15]} 31... Rb8 {[%clk 0:02:33.1]} 32. g4 {[%clk 0:02:11.5]}
32... fxg4 {[%clk 0:02:33.5]} 33. Bxe4+ {[%clk 0:02:11.4]} 33... Bg6 {[%clk
0:02:32.5]} 34. Bxg6+ {[%clk 0:02:11.5]} 34... Kxg6 {[%clk 0:02:32.5]} 35. hxg4
{[%clk 0:02:12]} 35... Kh7 {[%clk 0:02:33.2]} 36. Rgd1 {[%clk 0:01:55.7]} 36...
Rxb4 {[%clk 0:02:25.8]} 37. Rxd6 {[%clk 0:01:54.7]} 37... Qb8 {[%clk 0:02:25.4]}
38. R6d2 {[%clk 0:01:53.2]} 38... Rxb2 {[%clk 0:02:24.7]} 39. Rxb2 {[%clk
0:01:54]} 39... Qxb2 {[%clk 0:02:25.8]} 40. Qxb2 {[%clk 0:01:54.7]} 40... Bxb2
{[%clk 0:02:26.3]} 41. Rd7 {[%clk 0:01:51.9]} 41... Re8 {[%clk 0:02:23.5]} 42.
Bf2 {[%clk 0:01:50.2]} 42... Kg8 {[%clk 0:02:23.9]} 43. Kg3 {[%clk 0:01:50.2]}
43... Rc8 {[%clk 0:02:23.2]} 44. Kf3 {[%clk 0:01:48.7]} 44... Bf6 {[%clk
0:02:23.9]} 45. Be3 {[%clk 0:01:48.2]} 45... Ra8 {[%clk 0:02:22.6]} 46. Rb7
{[%clk 0:01:47.2]} 46... Re8 {[%clk 0:02:22.3]} 47. g5 {[%clk 0:01:46.7]} 47...
hxg5 {[%clk 0:02:22.3]} 48. fxg5 {[%clk 0:01:47.6]} 48... Be5 {[%clk 0:02:22.5]}
49. Kg4 {[%clk 0:01:48.2]} 49... g6 {[%clk 0:02:21.7]} 50. Kf3 {[%clk
0:01:44.9]} 50... Bg7 {[%clk 0:02:22.5]} 51. Bf4 {[%clk 0:01:41]} 51... Rf8
{[%clk 0:02:21.7]} 52. Ke4 {[%clk 0:01:40.9]} 52... Re8+ {[%clk 0:02:22.3]} 53.
Kd5 {[%clk 0:01:41]} 53... Rf8 {[%clk 0:02:21.7]} 54. Ke4 {[%clk 0:01:33.8]}
54... Re8+ {[%clk 0:02:21.9]} 55. Kd5 {[%clk 0:01:34.6]} 55... Rf8 {[%clk
0:02:22.6]} 56. Ke4 {[%clk 0:01:32.2]} 56... Re8+ {[%clk 0:02:23.7]} 57. Kd5
{[%clk 0:01:32.9]} 57... Rf8 {[%clk 0:02:24.2]} 58. Ke4 {[%clk 0:01:33.4]} 58...
Re8+ {[%clk 0:02:25.1]} 59. Kd5 {[%clk 0:01:34.2]} 59... Rf8 {[%clk 0:02:26.1]}
60. Ke4 {[%clk 0:01:34.7]} 1/2-1/2

[Event "*** Titled Tuesday 3|2 Blitz (Early)"]
[Site "Chess.com"]
[Date "2016.12.06"]
[Round "9"]
[White "popov_m"]
[Black "Ar4uha"]
[Result "1-0"]
[WhiteElo "2330"]
[BlackElo "2441"]
[TimeControl "180+2"]
[EndTime "12:59:26 PST"]
[Termination "popov_m won by resignation"]

1. c4 {[%clk 0:03:02]} 1... Nf6 {[%clk 0:03:00.7]} 2. g3 {[%clk 0:03:03.4]} 2...
e6 {[%clk 0:03:01.7]} 3. Bg2 {[%clk 0:03:04]} 3... d5 {[%clk 0:03:03.3]} 4. Nf3
{[%clk 0:03:03.7]} 4... dxc4 {[%clk 0:03:04.9]} 5. Qa4+ {[%clk 0:03:03.6]} 5...
Nbd7 {[%clk 0:03:06]} 6. Qxc4 {[%clk 0:03:05.1]} 6... c5 {[%clk 0:03:07.7]} 7.
Qc2 {[%clk 0:03:05.6]} 7... Rb8 {[%clk 0:03:06.5]} 8. O-O {[%clk 0:03:06.1]}
8... b6 {[%clk 0:03:06.8]} 9. d4 {[%clk 0:03:06.6]} 9... Bb7 {[%clk 0:03:03.8]}
10. Rd1 {[%clk 0:03:07.2]} 10... Rc8 {[%clk 0:03:05]} 11. Nc3 {[%clk 0:03:06.4]}
11... Be7 {[%clk 0:03:04.9]} 12. dxc5 {[%clk 0:03:03.5]} 12... Bxc5 {[%clk
0:03:06.8]} 13. Bg5 {[%clk 0:02:58.8]} 13... Qe7 {[%clk 0:03:04.8]} 14. Qa4
{[%clk 0:02:52.9]} 14... a6 {[%clk 0:02:17]} 15. Ne5 {[%clk 0:02:28.3]} 15... b5
{[%clk 0:00:59.2]} 16. Bxb7 {[%clk 0:01:41.1]} 16... Nxe5 {[%clk 0:00:14.2]} 17.
Qxa6 {[%clk 0:01:32.8]} 17... Bxf2+ {[%clk 0:00:08.2]} 18. Kh1 {[%clk
0:01:30.9]} 18... Rb8 {[%clk 0:00:06.6]} 19. Bc6+ {[%clk 0:01:23.6]} 19... Kf8
{[%clk 0:00:07.1]} 20. Ne4 {[%clk 0:01:25.1]} 20... Bb6 {[%clk 0:00:05.7]} 21.
Nxf6 {[%clk 0:01:10.5]} 21... gxf6 {[%clk 0:00:07.6]} 22. Bh6+ {[%clk
0:01:11.9]} 22... Kg8 {[%clk 0:00:09.2]} 23. Bf3 {[%clk 0:01:09.5]} 23... Nxf3
{[%clk 0:00:09.8]} 24. exf3 {[%clk 0:01:11.4]} 24... Bc5 {[%clk 0:00:06.3]} 25.
Rac1 {[%clk 0:01:08.7]} 25... Bb6 {[%clk 0:00:02.5]} 26. Rc8+ {[%clk 0:00:59.1]}
1-0

[Event "*** Titled Tuesday 3|2 Blitz (Early)"]
[Site "Chess.com"]
[Date "2016.12.06"]
[Round "9"]
[White "Astaneh"]
[Black "Zhani-Z"]
[Result "1-0"]
[WhiteElo "2465"]
[BlackElo "2275"]
[TimeControl "180+2"]
[EndTime "13:00:05 PST"]
[Termination "Astaneh won on time"]

1. e4 {[%clk 0:03:02]} 1... c5 {[%clk 0:02:48.4]} 2. Nf3 {[%clk 0:03:02.7]} 2...
d6 {[%clk 0:02:44.7]} 3. b3 {[%clk 0:03:02.4]} 3... Nf6 {[%clk 0:02:39.3]} 4. e5
{[%clk 0:02:16.7]} 4... dxe5 {[%clk 0:02:39.3]} 5. Nxe5 {[%clk 0:02:18.6]} 5...
Nbd7 {[%clk 0:02:21.9]} 6. Nf3 {[%clk 0:02:12.8]} 6... e5 {[%clk 0:02:19.1]} 7.
d3 {[%clk 0:02:06.2]} 7... Bd6 {[%clk 0:02:11]} 8. Nbd2 {[%clk 0:02:05]} 8...
O-O {[%clk 0:02:10.8]} 9. Bb2 {[%clk 0:02:03.1]} 9... Re8 {[%clk 0:01:51.3]} 10.
Ne4 {[%clk 0:02:02.9]} 10... Nxe4 {[%clk 0:01:28.7]} 11. dxe4 {[%clk 0:02:03.6]}
11... Nf6 {[%clk 0:01:28.2]} 12. Bc4 {[%clk 0:01:57.8]} 12... Bg4 {[%clk
0:01:11.2]} 13. h3 {[%clk 0:01:57.9]} 13... Bh5 {[%clk 0:01:10.7]} 14. Qe2
{[%clk 0:01:42.3]} 14... a6 {[%clk 0:00:36.8]} 15. O-O-O {[%clk 0:01:36.3]}
15... Qc7 {[%clk 0:00:29]} 16. g4 {[%clk 0:01:24.4]} 16... Bg6 {[%clk
0:00:29.1]} 17. h4 {[%clk 0:01:26]} 17... h5 {[%clk 0:00:23.6]} 18. gxh5 {[%clk
0:01:24.6]} 18... Nxh5 {[%clk 0:00:22.7]} 19. Rdg1 {[%clk 0:01:12]} 19... Nf4
{[%clk 0:00:14.4]} 20. Qe3 {[%clk 0:01:13.2]} 20... b5 {[%clk 0:00:12.4]} 21. h5
{[%clk 0:00:53.9]} 21... bxc4 {[%clk 0:00:10]} 22. hxg6 {[%clk 0:00:55.1]} 22...
fxg6 {[%clk 0:00:07.9]} 23. Ng5 {[%clk 0:00:50.6]} 23... cxb3 {[%clk 0:00:03.4]}
24. axb3 {[%clk 0:00:47.8]} 24... c4 {[%clk 0:00:04.3]} 25. Rh4 {[%clk
0:00:44.9]} 25... Rab8 {[%clk 0:00:02.4]} 26. Rgh1 {[%clk 0:00:45.1]} 26... Kf8
{[%clk 0:00:03.2]} 27. Qc3 {[%clk 0:00:33.9]} 1-0

[Event "*** Titled Tuesday 3|2 Blitz (Early)"]
[Site "Chess.com"]
[Date "2016.12.06"]
[Round "9"]
[White "Nachsueb"]
[Black "Morshynska"]
[Result "0-1"]
[WhiteElo "2063"]
[BlackElo "2126"]
[TimeControl "180+2"]
[EndTime "13:00:13 PST"]
[Termination "Morshynska won on time"]

1. e4 {[%clk 0:03:02]} 1... e5 {[%clk 0:02:59]} 2. Nf3 {[%clk 0:03:02.9]} 2...
Nc6 {[%clk 0:03:00.1]} 3. Bb5 {[%clk 0:03:04.5]} 3... a6 {[%clk 0:03:01.1]} 4.
Ba4 {[%clk 0:03:06]} 4... Nf6 {[%clk 0:03:02.3]} 5. O-O {[%clk 0:03:07]} 5... b5
{[%clk 0:03:03.6]} 6. Bb3 {[%clk 0:03:08]} 6... Bb7 {[%clk 0:03:05.5]} 7. Re1
{[%clk 0:03:06.5]} 7... Bc5 {[%clk 0:03:06]} 8. c3 {[%clk 0:03:04.1]} 8... d6
{[%clk 0:03:06.6]} 9. d4 {[%clk 0:03:01.7]} 9... Bb6 {[%clk 0:03:06.1]} 10. a4
{[%clk 0:02:50]} 10... h6 {[%clk 0:03:03.7]} 11. Qd3 {[%clk 0:02:31.8]} 11...
O-O {[%clk 0:02:37.7]} 12. Nbd2 {[%clk 0:02:19.4]} 12... Qd7 {[%clk 0:02:30.4]}
13. Nf1 {[%clk 0:01:47]} 13... Rfe8 {[%clk 0:02:10.3]} 14. Ng3 {[%clk
0:01:44.4]} 14... exd4 {[%clk 0:02:01.6]} 15. Nxd4 {[%clk 0:01:34.9]} 15... Nxd4
{[%clk 0:01:46]} 16. cxd4 {[%clk 0:01:35.5]} 16... c5 {[%clk 0:01:41.7]} 17.
dxc5 {[%clk 0:01:27.1]} 17... dxc5 {[%clk 0:01:43.3]} 18. Qxd7 {[%clk 0:01:28]}
18... Nxd7 {[%clk 0:01:45.2]} 19. Be3 {[%clk 0:01:14]} 19... c4 {[%clk 0:01:39]}
20. Bc2 {[%clk 0:01:13.5]} 20... Bxe3 {[%clk 0:01:31.2]} 21. Rxe3 {[%clk
0:01:15.4]} 21... Nc5 {[%clk 0:01:31]} 22. f3 {[%clk 0:01:04.5]} 22... b4 {[%clk
0:01:28.9]} 23. Nf5 {[%clk 0:01:04.3]} 23... Rad8 {[%clk 0:01:27.2]} 24. Rd1
{[%clk 0:01:02.2]} 24... b3 {[%clk 0:01:18.9]} 25. Rc1 {[%clk 0:00:25.1]} 25...
bxc2 {[%clk 0:01:12.6]} 26. Rxc2 {[%clk 0:00:27]} 26... Bc8 {[%clk 0:01:08.3]}
27. Rxc4 {[%clk 0:00:25]} 27... Rd1+ {[%clk 0:00:50.1]} 28. Kf2 {[%clk
0:00:25.7]} 28... Bxf5 {[%clk 0:00:36.1]} 0-1